[Event "*** Titled Tuesday Blitz"]
[Site "Chess.com"]
[Date "2018.10.02"]
[Round "4"]
[White "Quiet_Desperation"]
[Black "Synctel"]
[Result "1-0"]
[WhiteElo "1914"]
[BlackElo "1980"]
[TimeControl "180+2"]
[EndTime "13:48:38 PDT"]
[Termination "Quiet_Desperation won by checkmate"]

1. e4 {[%clk 0:03:01.9]} 1... e6 {[%clk 0:02:57.3]} 2. d4 {[%clk 0:03:02]} 2...
d5 {[%clk 0:02:58.5]} 3. Nc3 {[%clk 0:03:03.6]} 3... Nf6 {[%clk 0:02:58.7]} 4.
e5 {[%clk 0:03:04.9]} 4... Nfd7 {[%clk 0:02:59.9]} 5. f4 {[%clk 0:03:05.5]} 5...
b6 {[%clk 0:02:56.6]} 6. Nf3 {[%clk 0:03:06.7]} 6... Ba6 {[%clk 0:02:53.8]} 7.
Bxa6 {[%clk 0:03:03.7]} 7... Nxa6 {[%clk 0:02:54.6]} 8. Qe2 {[%clk 0:03:05.4]}
8... Nab8 {[%clk 0:02:54.1]} 9. Be3 {[%clk 0:03:06.2]} 9... Be7 {[%clk
0:02:41.1]} 10. g4 {[%clk 0:03:05.8]} 10... h5 {[%clk 0:02:38.7]} 11. gxh5
{[%clk 0:03:04]} 11... Rxh5 {[%clk 0:02:38.8]} 12. Ng5 {[%clk 0:03:05.3]} 12...
Rh8 {[%clk 0:02:19.8]} 13. O-O-O {[%clk 0:03:05.6]} 13... Nf8 {[%clk 0:01:33.6]}
14. Qg4 {[%clk 0:02:55.7]} 14... g6 {[%clk 0:01:09.3]} 15. h4 {[%clk 0:02:47.2]}
15... Qd7 {[%clk 0:00:48.3]} 16. h5 {[%clk 0:02:41.4]} 16... gxh5 {[%clk
0:00:42.1]} 17. Rxh5 {[%clk 0:02:41.7]} 17... Rxh5 {[%clk 0:00:41.7]} 18. Qxh5
{[%clk 0:02:42.6]} 18... Bxg5 {[%clk 0:00:42.2]} 19. Qxg5 {[%clk 0:02:38.1]}
19... Nc6 {[%clk 0:00:39.6]} 20. Rh1 {[%clk 0:02:34]} 20... Ne7 {[%clk
0:00:37.9]} 21. Ne2 {[%clk 0:02:19.7]} 21... O-O-O {[%clk 0:00:36.6]} 22. Ng3
{[%clk 0:02:20.8]} 22... Nfg6 {[%clk 0:00:18.5]} 23. Rh7 {[%clk 0:02:19.1]}
23... Rf8 {[%clk 0:00:05.9]} 24. Qf6 {[%clk 0:02:09.4]} 24... Qe8 {[%clk
0:00:06.2]} 25. f5 {[%clk 0:02:03.1]} 25... Ng8 {[%clk 0:00:07.3]} 26. Qg5
{[%clk 0:01:55.6]} 26... exf5 {[%clk 0:00:07.5]} 27. Nxf5 {[%clk 0:01:53.3]}
27... f6 {[%clk 0:00:05.6]} 28. Qg4 {[%clk 0:01:50.3]} 28... Kb8 {[%clk
0:00:04.7]} 29. Rg7 {[%clk 0:01:47.7]} 29... N8e7 {[%clk 0:00:02.3]} 30. exf6
{[%clk 0:01:38.8]} 30... Rxf6 {[%clk 0:00:02.5]} 31. Nxe7 {[%clk 0:01:35.8]}
31... Nxe7 {[%clk 0:00:04.4]} 32. b3 {[%clk 0:01:17.8]} 32... Rg6 {[%clk
0:00:05.4]} 33. Rxg6 {[%clk 0:01:18.1]} 33... Qxg6 {[%clk 0:00:05.6]} 34. Qd7
{[%clk 0:01:14.5]} 34... Qe4 {[%clk 0:00:06]} 35. Bf2 {[%clk 0:01:04.9]} 35...
Qf4+ {[%clk 0:00:02.1]} 36. Kb2 {[%clk 0:01:01.6]} 36... Qxf2 {[%clk 0:00:03.3]}
37. Qxe7 {[%clk 0:01:03]} 37... Qxd4+ {[%clk 0:00:04.7]} 38. Kb1 {[%clk
0:01:01.7]} 38... Kb7 {[%clk 0:00:06.2]} 39. Qd8 {[%clk 0:01:02.2]} 39... Qc5
{[%clk 0:00:07]} 40. Qd7 {[%clk 0:01:03.2]} 40... a5 {[%clk 0:00:07.9]} 41. Qe6
{[%clk 0:01:03.4]} 41... Qc6 {[%clk 0:00:07.3]} 42. Qg4 {[%clk 0:01:00.3]} 42...
Qd6 {[%clk 0:00:08.2]} 43. a4 {[%clk 0:01:00.6]} 43... d4 {[%clk 0:00:09.1]} 44.
Qe4+ {[%clk 0:01:01.7]} 44... Ka7 {[%clk 0:00:09]} 45. Qd3 {[%clk 0:01:02.9]}
45... Qc5 {[%clk 0:00:09.8]} 46. Qh7 {[%clk 0:00:59.7]} 46... Qd5 {[%clk
0:00:07.2]} 47. Qd3 {[%clk 0:01:00.1]} 47... Kb7 {[%clk 0:00:06.8]} 48. Qh7
{[%clk 0:01:00.6]} 48... Qd6 {[%clk 0:00:07.1]} 49. Qd3 {[%clk 0:01:01.2]} 49...
Qe5 {[%clk 0:00:07.3]} 50. Qf3+ {[%clk 0:01:01.3]} 50... Ka7 {[%clk 0:00:07.9]}
51. Qc6 {[%clk 0:01:00.6]} 51... Qe1+ {[%clk 0:00:08]} 52. Ka2 {[%clk
0:01:01.3]} 52... Qe5 {[%clk 0:00:09.3]} 53. Qc4 {[%clk 0:01:00.4]} 53... Qc5
{[%clk 0:00:10.2]} 54. Qd3 {[%clk 0:00:52.8]} 54... Qc3 {[%clk 0:00:11.2]} 55.
Qh7 {[%clk 0:00:46]} 55... Qc5 {[%clk 0:00:08.3]} 56. Qe4 {[%clk 0:00:46.5]}
56... Ka6 {[%clk 0:00:06.6]} 57. Qa8# {[%clk 0:00:46]} 1-0

[Event "*** Titled Tuesday Blitz"]
[Site "Chess.com"]
[Date "2018.10.02"]
[Round "4"]
[White "Aygehovit1992"]
[Black "kleinebeer98"]
[Result "0-1"]
[WhiteElo "2651"]
[BlackElo "2553"]
[TimeControl "180+2"]
[EndTime "13:48:58 PDT"]
[Termination "kleinebeer98 won by resignation"]

1. d4 {[%clk 0:03:01.9]} 1... e6 {[%clk 0:02:52.2]} 2. c4 {[%clk 0:03:02.7]}
2... b6 {[%clk 0:02:53.2]} 3. Nc3 {[%clk 0:03:03.8]} 3... Bb7 {[%clk 0:02:53.8]}
4. e4 {[%clk 0:03:05.4]} 4... Bb4 {[%clk 0:02:54.8]} 5. Bd3 {[%clk 0:03:06.4]}
5... Nc6 {[%clk 0:02:55.8]} 6. Ne2 {[%clk 0:03:07]} 6... e5 {[%clk 0:02:56.6]}
7. d5 {[%clk 0:03:05.2]} 7... Nce7 {[%clk 0:02:57.8]} 8. O-O {[%clk 0:03:05.8]}
8... Ng6 {[%clk 0:02:45.5]} 9. g3 {[%clk 0:03:06.5]} 9... h5 {[%clk 0:02:46.3]}
10. f4 {[%clk 0:03:07.3]} 10... h4 {[%clk 0:02:44.9]} 11. f5 {[%clk 0:03:08.5]}
11... hxg3 {[%clk 0:02:29.6]} 12. hxg3 {[%clk 0:03:10.4]} 12... Bc5+ {[%clk
0:02:25]} 13. Kg2 {[%clk 0:03:11.5]} 13... Nh4+ {[%clk 0:02:26.4]} 14. gxh4
{[%clk 0:03:11.9]} 14... Qxh4 {[%clk 0:02:28.3]} 15. Ng3 {[%clk 0:03:11.5]}
15... Qh2+ {[%clk 0:02:00.6]} 16. Kf3 {[%clk 0:03:11.6]} 16... Rh3 {[%clk
0:02:02]} 17. Ne2 {[%clk 0:03:03.7]} 17... Nf6 {[%clk 0:01:50.6]} 18. Bd2 {[%clk
0:02:10.4]} 18... Nh5 {[%clk 0:01:31.2]} 19. Be1 {[%clk 0:02:11]} 19... Nf4
{[%clk 0:01:09.5]} 20. Nxf4 {[%clk 0:02:05]} 20... exf4 {[%clk 0:01:11.4]} 21.
Kxf4 {[%clk 0:01:58.4]} 21... Qxb2 {[%clk 0:00:49.4]} 22. Rb1 {[%clk 0:01:21]}
22... Bd6+ {[%clk 0:00:35.5]} 23. Kg4 {[%clk 0:01:20]} 23... Qh2 {[%clk
0:00:34.2]} 24. e5 {[%clk 0:00:48.4]} 24... Bxe5 {[%clk 0:00:31.5]} 25. Rg1
{[%clk 0:00:35.6]} 25... Rh4+ {[%clk 0:00:27.8]} 26. Kf3 {[%clk 0:00:36]} 26...
Qxg1 {[%clk 0:00:28.8]} 27. Qd2 {[%clk 0:00:18.3]} 27... Rf4+ {[%clk 0:00:20.5]}
28. Ke2 {[%clk 0:00:12.6]} 28... Qg2+ {[%clk 0:00:20.8]} 29. Kd1 {[%clk
0:00:13.6]} 29... Qxd2+ {[%clk 0:00:22.2]} 30. Kxd2 {[%clk 0:00:13.1]} 30...
O-O-O {[%clk 0:00:21.6]} 31. Ne2 {[%clk 0:00:12.1]} 31... Rg4 {[%clk 0:00:19.5]}
32. Bf2 {[%clk 0:00:06.2]} 32... Rh8 {[%clk 0:00:15.7]} 33. Be3 {[%clk
0:00:07.1]} 33... Bf6 {[%clk 0:00:12.1]} 34. Rf1 {[%clk 0:00:05.7]} 34... Ba6
{[%clk 0:00:11.3]} 35. Bf4 {[%clk 0:00:04.5]} 35... Rhh4 {[%clk 0:00:08.1]} 36.
d6 {[%clk 0:00:05.1]} 36... Rxf4 {[%clk 0:00:08.9]} 37. Nxf4 {[%clk 0:00:06]}
37... Rxf4 {[%clk 0:00:09.6]} 38. Rxf4 {[%clk 0:00:06.5]} 38... Bg5 {[%clk
0:00:11.1]} 39. Ke3 {[%clk 0:00:06]} 39... cxd6 {[%clk 0:00:12.5]} 40. Kf3
{[%clk 0:00:05.4]} 40... Bxf4 {[%clk 0:00:13.7]} 41. Kxf4 {[%clk 0:00:07.3]}
41... f6 {[%clk 0:00:14.7]} 42. Kg4 {[%clk 0:00:07.8]} 42... d5 {[%clk
0:00:15.8]} 43. Kh5 {[%clk 0:00:09.1]} 43... Bxc4 {[%clk 0:00:12]} 44. Bc2
{[%clk 0:00:10.2]} 44... Kd8 {[%clk 0:00:12.4]} 45. Kg6 {[%clk 0:00:11.4]} 45...
Ke7 {[%clk 0:00:13.3]} 46. Kxg7 {[%clk 0:00:12.7]} 46... d4 {[%clk 0:00:14.6]}
47. Kg6 {[%clk 0:00:14.2]} 47... Be2 {[%clk 0:00:15.7]} 0-1

[Event "*** Titled Tuesday Blitz"]
[Site "Chess.com"]
[Date "2018.10.02"]
[Round "4"]
[White "Eliwood44"]
[Black "chesstatour"]
[Result "1-0"]
[WhiteElo "2220"]
[BlackElo "2015"]
[TimeControl "180+2"]
[EndTime "13:48:58 PDT"]
[Termination "Eliwood44 won by resignation"]

1. d4 {[%clk 0:03:01.9]} 1... e6 {[%clk 0:02:50]} 2. Nf3 {[%clk 0:03:01.2]} 2...
b6 {[%clk 0:02:47.9]} 3. e3 {[%clk 0:02:59.6]} 3... Bb7 {[%clk 0:02:48.8]} 4.
Bd3 {[%clk 0:03:00.2]} 4... f5 {[%clk 0:02:50.1]} 5. O-O {[%clk 0:03:00.6]} 5...
Nf6 {[%clk 0:02:51.7]} 6. c4 {[%clk 0:02:49.3]} 6... Be7 {[%clk 0:02:51.5]} 7.
Nc3 {[%clk 0:02:47.4]} 7... O-O {[%clk 0:02:52]} 8. d5 {[%clk 0:02:48.6]} 8...
a5 {[%clk 0:02:39]} 9. b3 {[%clk 0:02:41.3]} 9... Na6 {[%clk 0:02:37.5]} 10. Bb2
{[%clk 0:02:41.9]} 10... Nc5 {[%clk 0:02:37.6]} 11. Bc2 {[%clk 0:02:42.9]} 11...
Kh8 {[%clk 0:02:20.9]} 12. a3 {[%clk 0:02:30.2]} 12... Nfe4 {[%clk 0:02:15.4]}
13. b4 {[%clk 0:02:21.6]} 13... Nxc3 {[%clk 0:02:15.6]} 14. Bxc3 {[%clk
0:02:21.4]} 14... Ne4 {[%clk 0:02:10.2]} 15. Bxe4 {[%clk 0:02:22.4]} 15... fxe4
{[%clk 0:02:10.6]} 16. Ne1 {[%clk 0:02:14.7]} 16... exd5 {[%clk 0:01:38.3]} 17.
cxd5 {[%clk 0:02:14]} 17... axb4 {[%clk 0:01:32.8]} 18. axb4 {[%clk 0:02:13]}
18... Bf6 {[%clk 0:00:57.2]} 19. Rxa8 {[%clk 0:02:11]} 19... Qxa8 {[%clk
0:00:48.7]} 20. Bxf6 {[%clk 0:01:56.2]} 20... Rxf6 {[%clk 0:00:49.5]} 21. Qc2
{[%clk 0:01:56.4]} 21... Bxd5 {[%clk 0:00:33.7]} 22. Qxc7 {[%clk 0:01:55.2]}
22... Rf8 {[%clk 0:00:18.3]} 23. Kh1 {[%clk 0:01:23.5]} 23... Qc6 {[%clk
0:00:17.1]} 24. Qxc6 {[%clk 0:01:20]} 24... dxc6 {[%clk 0:00:19]} 25. g3 {[%clk
0:01:21.1]} 25... Bc4 {[%clk 0:00:13.9]} 26. Rg1 {[%clk 0:01:21.9]} 26... Be2
{[%clk 0:00:12.6]} 27. Ng2 {[%clk 0:01:22.3]} 27... Bf3 {[%clk 0:00:12.6]} 28.
Rc1 {[%clk 0:01:21.7]} 28... Rc8 {[%clk 0:00:10.7]} 29. Kg1 {[%clk 0:01:22.3]}
29... c5 {[%clk 0:00:11.6]} 30. Nh4 {[%clk 0:01:18.8]} 30... Bg4 {[%clk
0:00:10.9]} 31. bxc5 {[%clk 0:01:17.4]} 31... Rxc5 {[%clk 0:00:10.4]} 32. Rb1
{[%clk 0:01:15.1]} 32... b5 {[%clk 0:00:09.1]} 33. Ng2 {[%clk 0:01:08.7]} 33...
g5 {[%clk 0:00:08.5]} 34. Ne1 {[%clk 0:01:07.8]} 34... Kg7 {[%clk 0:00:07]} 35.
Kg2 {[%clk 0:01:07.1]} 35... Kf6 {[%clk 0:00:06.9]} 36. h3 {[%clk 0:01:07.6]}
36... Bf5 {[%clk 0:00:06.9]} 37. g4 {[%clk 0:01:04.5]} 37... Bg6 {[%clk
0:00:06.3]} 38. Rb2 {[%clk 0:01:00.5]} 38... Ke6 {[%clk 0:00:06.4]} 39. Nc2
{[%clk 0:01:01.5]} 39... Kd5 {[%clk 0:00:06.4]} 40. Nd4 {[%clk 0:01:02.6]} 40...
Be8 {[%clk 0:00:06.1]} 41. Kg3 {[%clk 0:01:00]} 41... h6 {[%clk 0:00:06.8]} 42.
h4 {[%clk 0:01:01.1]} 42... Kc4 {[%clk 0:00:06.1]} 43. hxg5 {[%clk 0:01:00.2]}
43... hxg5 {[%clk 0:00:05.6]} 44. Rc2+ {[%clk 0:00:24.4]} 44... Kd5 {[%clk
0:00:06.5]} 45. Rb2 {[%clk 0:00:25.5]} 45... Kd6 {[%clk 0:00:05.9]} 46. Rb4
{[%clk 0:00:23.8]} 46... Kd5 {[%clk 0:00:04.4]} 47. Nf5 {[%clk 0:00:24.4]} 47...
Rc4 {[%clk 0:00:02.6]} 48. Rb2 {[%clk 0:00:24.8]} 48... Kc5 {[%clk 0:00:03.1]}
49. Nd4 {[%clk 0:00:25.4]} 49... b4 {[%clk 0:00:03.8]} 50. Ne6+ {[%clk
0:00:26.5]} 50... Kb5 {[%clk 0:00:03.5]} 51. Nxg5 {[%clk 0:00:28]} 51... b3
{[%clk 0:00:03.7]} 52. Rxb3+ {[%clk 0:00:28.5]} 52... Kc5 {[%clk 0:00:04.8]} 53.
Rb8 {[%clk 0:00:28.8]} 53... Bb5 {[%clk 0:00:05.2]} 54. Rc8+ {[%clk 0:00:27.5]}
54... Kd6 {[%clk 0:00:06]} 55. Rxc4 {[%clk 0:00:27.9]} 55... Bxc4 {[%clk
0:00:07.9]} 56. Nxe4+ {[%clk 0:00:29.4]} 56... Ke5 {[%clk 0:00:09.1]} 57. Nd2
{[%clk 0:00:31.3]} 57... Bd3 {[%clk 0:00:09.5]} 58. f4+ {[%clk 0:00:32.5]} 1-0

[Event "*** Titled Tuesday Blitz"]
[Site "Chess.com"]
[Date "2018.10.02"]
[Round "4"]
[White "Morshynska"]
[Black "DishonorOnYourCow"]
[Result "0-1"]
[WhiteElo "2082"]
[BlackElo "2263"]
[TimeControl "180+2"]
[EndTime "13:49:03 PDT"]
[Termination "DishonorOnYourCow won by resignation"]

1. d4 {[%clk 0:03:01.9]} 1... d5 {[%clk 0:02:58.6]} 2. c4 {[%clk 0:03:01.9]}
2... dxc4 {[%clk 0:02:57.5]} 3. Nf3 {[%clk 0:03:02]} 3... a6 {[%clk 0:02:57.1]}
4. a4 {[%clk 0:03:01.4]} 4... Nf6 {[%clk 0:02:56.8]} 5. e3 {[%clk 0:02:59.4]}
5... Bg4 {[%clk 0:02:57.1]} 6. Bxc4 {[%clk 0:02:58.8]} 6... e6 {[%clk
0:02:57.9]} 7. Nc3 {[%clk 0:02:55.7]} 7... Nc6 {[%clk 0:02:57.3]} 8. h3 {[%clk
0:02:52.6]} 8... Bh5 {[%clk 0:02:57.1]} 9. Be2 {[%clk 0:02:51.1]} 9... Bd6
{[%clk 0:02:56]} 10. O-O {[%clk 0:02:40.7]} 10... O-O {[%clk 0:02:55.9]} 11. Ng5
{[%clk 0:02:15]} 11... Bxe2 {[%clk 0:02:44.1]} 12. Qxe2 {[%clk 0:02:16.9]} 12...
e5 {[%clk 0:02:28.7]} 13. d5 {[%clk 0:02:08.3]} 13... Nxd5 {[%clk 0:02:06.5]}
14. Qh5 {[%clk 0:01:58.1]} 14... Nf6 {[%clk 0:02:00.1]} 15. Qh4 {[%clk
0:01:56.6]} 15... h6 {[%clk 0:01:59.1]} 16. Nge4 {[%clk 0:01:57.2]} 16... Nxe4
{[%clk 0:01:58.1]} 17. Qxe4 {[%clk 0:01:59.1]} 17... f5 {[%clk 0:01:52.4]} 18.
Qd5+ {[%clk 0:01:54.9]} 18... Kh8 {[%clk 0:01:52.8]} 19. Rd1 {[%clk 0:01:55.1]}
19... Qf6 {[%clk 0:01:40.5]} 20. Qb3 {[%clk 0:01:47]} 20... Rab8 {[%clk
0:01:21.5]} 21. Bd2 {[%clk 0:01:45.2]} 21... e4 {[%clk 0:01:18.1]} 22. Nd5
{[%clk 0:01:36.3]} 22... Qg6 {[%clk 0:01:17.3]} 23. Bc3 {[%clk 0:01:33.1]} 23...
Ne5 {[%clk 0:01:14.2]} 24. Bxe5 {[%clk 0:01:30.7]} 24... Bxe5 {[%clk 0:01:14.7]}
25. Rac1 {[%clk 0:01:22.9]} 25... c6 {[%clk 0:01:14.5]} 26. Nf4 {[%clk 0:01:14]}
26... Bxf4 {[%clk 0:01:13.7]} 27. exf4 {[%clk 0:01:15.9]} 27... Qf7 {[%clk
0:01:10.8]} 28. Qb6 {[%clk 0:00:55.9]} 28... Qe7 {[%clk 0:01:04.7]} 29. Rc5
{[%clk 0:00:39.6]} 29... Rfd8 {[%clk 0:00:38.1]} 30. Rxd8+ {[%clk 0:00:35.4]}
30... Qxd8 {[%clk 0:00:38.3]} 31. Qxd8+ {[%clk 0:00:26.3]} 31... Rxd8 {[%clk
0:00:40.2]} 32. Rxf5 {[%clk 0:00:26.7]} 32... Rd1+ {[%clk 0:00:41.1]} 33. Kh2
{[%clk 0:00:27.7]} 33... Rb1 {[%clk 0:00:36.4]} 34. Re5 {[%clk 0:00:25.3]} 34...
Rxb2 {[%clk 0:00:37.2]} 35. Rxe4 {[%clk 0:00:25.4]} 35... Rxf2 {[%clk
0:00:37.8]} 36. Kg3 {[%clk 0:00:25.9]} 36... Rb2 {[%clk 0:00:38.4]} 37. f5
{[%clk 0:00:26]} 37... b5 {[%clk 0:00:37.9]} 38. axb5 {[%clk 0:00:21.7]} 38...
cxb5 {[%clk 0:00:35.2]} 39. f6 {[%clk 0:00:18.5]} 39... gxf6 {[%clk 0:00:35.1]}
40. Re6 {[%clk 0:00:19.5]} 40... a5 {[%clk 0:00:35.3]} 41. Rxf6 {[%clk
0:00:20.4]} 41... Kg7 {[%clk 0:00:35.7]} 42. Ra6 {[%clk 0:00:20.5]} 42... a4
{[%clk 0:00:36.4]} 43. h4 {[%clk 0:00:20.1]} 43... Ra2 {[%clk 0:00:36.4]} 44.
Rb6 {[%clk 0:00:19.6]} 44... Rb2 {[%clk 0:00:35.1]} 45. Ra6 {[%clk 0:00:20.2]}
45... Rb3+ {[%clk 0:00:35.6]} 46. Kg4 {[%clk 0:00:20.9]} 46... a3 {[%clk
0:00:36.9]} 47. Kf5 {[%clk 0:00:19.7]} 47... b4 {[%clk 0:00:34.6]} 48. g4 {[%clk
0:00:20.4]} 48... Rf3+ {[%clk 0:00:33.3]} 49. Ke4 {[%clk 0:00:20.1]} 49... Rf2
{[%clk 0:00:32.3]} 50. h5 {[%clk 0:00:18.9]} 50... a2 {[%clk 0:00:30.6]} 51.
Ra7+ {[%clk 0:00:18.2]} 51... Kf6 {[%clk 0:00:28.5]} 52. Ra6+ {[%clk 0:00:17]}
52... Kg5 {[%clk 0:00:29.2]} 53. Rg6+ {[%clk 0:00:17.5]} 53... Kh4 {[%clk
0:00:30]} 54. Ra6 {[%clk 0:00:17.3]} 54... Kxg4 {[%clk 0:00:30.6]} 55. Ke3
{[%clk 0:00:18.2]} 55... Rh2 {[%clk 0:00:30.7]} 56. Ke4 {[%clk 0:00:19.2]} 56...
b3 {[%clk 0:00:28.6]} 57. Ke5 {[%clk 0:00:19]} 57... Rh1 {[%clk 0:00:23.9]} 0-1

[Event "*** Titled Tuesday Blitz"]
[Site "Chess.com"]
[Date "2018.10.02"]
[Round "4"]
[White "Buffy7"]
[Black "Thjop"]
[Result "1/2-1/2"]
[WhiteElo "2639"]
[BlackElo "2624"]
[TimeControl "180+2"]
[EndTime "13:49:04 PDT"]
[Termination "Game drawn by stalemate"]

1. d4 {[%clk 0:03:01.9]} 1... Nf6 {[%clk 0:02:59]} 2. Nf3 {[%clk 0:03:02.1]}
2... g6 {[%clk 0:03:00.2]} 3. e3 {[%clk 0:03:03.4]} 3... Bg7 {[%clk 0:03:01.4]}
4. Be2 {[%clk 0:03:05.1]} 4... O-O {[%clk 0:03:02.5]} 5. O-O {[%clk 0:03:06.8]}
5... d6 {[%clk 0:03:03.8]} 6. c4 {[%clk 0:03:08.1]} 6... Nbd7 {[%clk 0:03:04.7]}
7. Nc3 {[%clk 0:03:09.6]} 7... e5 {[%clk 0:03:05.9]} 8. Qc2 {[%clk 0:03:11.2]}
8... Re8 {[%clk 0:03:06.8]} 9. b3 {[%clk 0:03:10.7]} 9... c6 {[%clk 0:02:51.3]}
10. Rd1 {[%clk 0:03:01.5]} 10... e4 {[%clk 0:02:48.1]} 11. Nd2 {[%clk
0:03:02.6]} 11... Qe7 {[%clk 0:02:49.1]} 12. a4 {[%clk 0:02:58]} 12... a5 {[%clk
0:02:33.9]} 13. Ba3 {[%clk 0:02:58.5]} 13... Nf8 {[%clk 0:02:34.4]} 14. b4
{[%clk 0:02:54.2]} 14... axb4 {[%clk 0:02:34.7]} 15. Bxb4 {[%clk 0:02:56.1]}
15... Bf5 {[%clk 0:02:34.3]} 16. Ba3 {[%clk 0:02:43.8]} 16... h5 {[%clk
0:02:29.6]} 17. Rab1 {[%clk 0:02:35.1]} 17... Rad8 {[%clk 0:02:17.8]} 18. h3
{[%clk 0:02:14.8]} 18... N8h7 {[%clk 0:02:12.8]} 19. Bf1 {[%clk 0:02:15.8]}
19... h4 {[%clk 0:02:02.6]} 20. Ne2 {[%clk 0:02:14]} 20... g5 {[%clk 0:02:01.2]}
21. Rb6 {[%clk 0:02:09.6]} 21... g4 {[%clk 0:01:49.5]} 22. hxg4 {[%clk
0:02:10.3]} 22... Nxg4 {[%clk 0:01:45.1]} 23. Rdb1 {[%clk 0:02:05.8]} 23... Rd7
{[%clk 0:01:44.6]} 24. Qb3 {[%clk 0:02:02.8]} 24... Qg5 {[%clk 0:01:07.1]} 25.
Rxb7 {[%clk 0:01:12.4]} 25... h3 {[%clk 0:01:04.7]} 26. gxh3 {[%clk 0:01:13.7]}
26... Nxe3+ {[%clk 0:00:56.8]} 27. Ng3 {[%clk 0:01:14.9]} 27... Nxf1 {[%clk
0:00:53.8]} 28. Nxf1 {[%clk 0:01:16.8]} 28... Bxd4 {[%clk 0:00:44]} 29. Rxd7
{[%clk 0:01:06.5]} 29... Bxd7 {[%clk 0:00:45.9]} 30. Bxd6 {[%clk 0:01:07.7]}
30... Bxh3 {[%clk 0:00:42.5]} 31. Qd1 {[%clk 0:00:49]} 31... c5 {[%clk
0:00:38.5]} 32. Rb8 {[%clk 0:00:38.4]} 32... Rxb8 {[%clk 0:00:38.6]} 33. Bxb8
{[%clk 0:00:40.3]} 33... f5 {[%clk 0:00:35.7]} 34. Qh5 {[%clk 0:00:27.9]} 34...
Qxh5 {[%clk 0:00:35.4]} 35. Nxh5 {[%clk 0:00:29.8]} 35... Ng5 {[%clk 0:00:29.1]}
36. Ne3 {[%clk 0:00:24.8]} 36... Nf3+ {[%clk 0:00:25.2]} 37. Kh1 {[%clk
0:00:25.7]} 37... Bxe3 {[%clk 0:00:22]} 38. fxe3 {[%clk 0:00:27.6]} 38... Bf1
{[%clk 0:00:23.1]} 39. Bd6 {[%clk 0:00:27.5]} 39... Bxc4 {[%clk 0:00:23.4]} 40.
Bxc5 {[%clk 0:00:29.1]} 40... Kf7 {[%clk 0:00:22.7]} 41. a5 {[%clk 0:00:29.6]}
41... Ke6 {[%clk 0:00:20.2]} 42. Nf4+ {[%clk 0:00:30.3]} 42... Kd7 {[%clk
0:00:21.2]} 43. Kg2 {[%clk 0:00:30.2]} 43... Kc6 {[%clk 0:00:22]} 44. Bb6 {[%clk
0:00:31.3]} 44... Nd2 {[%clk 0:00:22.2]} 45. Kg3 {[%clk 0:00:32]} 45... Nb3
{[%clk 0:00:22.1]} 46. Kh4 {[%clk 0:00:33.2]} 46... Kb5 {[%clk 0:00:20.7]} 47.
Kg5 {[%clk 0:00:33]} 47... Nxa5 {[%clk 0:00:20.4]} 48. Bxa5 {[%clk 0:00:34.2]}
48... Kxa5 {[%clk 0:00:22.3]} 49. Kxf5 {[%clk 0:00:35.9]} 49... Bd3 {[%clk
0:00:22.5]} 50. Ke5 {[%clk 0:00:37.5]} 50... Kb5 {[%clk 0:00:22]} 51. Kd4 {[%clk
0:00:39.4]} 51... Bb1 {[%clk 0:00:22.3]} 52. Nh3 {[%clk 0:00:38.9]} 52... Kc6
{[%clk 0:00:21.1]} 53. Ng5 {[%clk 0:00:39.2]} 53... Kd6 {[%clk 0:00:21.4]} 54.
Nxe4+ {[%clk 0:00:31.3]} 54... Bxe4 {[%clk 0:00:21.7]} 55. Kxe4 {[%clk
0:00:33.2]} 55... Ke6 {[%clk 0:00:23]} 56. Kd4 {[%clk 0:00:35.1]} 56... Kd6
{[%clk 0:00:24.3]} 57. e4 {[%clk 0:00:37]} 57... Ke6 {[%clk 0:00:24.6]} 58. e5
{[%clk 0:00:38.9]} 58... Ke7 {[%clk 0:00:25.9]} 59. Ke4 {[%clk 0:00:40.8]} 59...
Ke6 {[%clk 0:00:27.2]} 60. Kf4 {[%clk 0:00:42.7]} 60... Ke7 {[%clk 0:00:27.4]}
61. Kf5 {[%clk 0:00:44.6]} 61... Kf7 {[%clk 0:00:28.6]} 62. Ke4 {[%clk
0:00:45.9]} 62... Ke6 {[%clk 0:00:29.7]} 63. Kd4 {[%clk 0:00:47.4]} 63... Ke7
{[%clk 0:00:30.1]} 64. Kd5 {[%clk 0:00:49.3]} 64... Kd7 {[%clk 0:00:31.3]} 65.
e6+ {[%clk 0:00:51.2]} 65... Ke7 {[%clk 0:00:32.6]} 66. Ke5 {[%clk 0:00:53.1]}
66... Ke8 {[%clk 0:00:33.8]} 67. Kf6 {[%clk 0:00:55]} 67... Kf8 {[%clk
0:00:34.9]} 68. e7+ {[%clk 0:00:56.9]} 68... Ke8 {[%clk 0:00:36.1]} 69. Ke6
{[%clk 0:00:58.8]} 1/2-1/2